bitfinex/quotes_SOLUSD_20260308
["timestamp","ask_amount","ask_price","bid_price","bid_amount"]
[1772953192882,0.54756146,82.469,82.432,12.13121118]
[1772953194107,0.54756146,82.467,82.412,60.67046941]
[1772953196810,12.01747696,82.468,82.413,0.47765602]
[1772953198512,0.28432314,82.479,82.415,0.47765602]
[1772953198810,0.48697183,82.478,82.415,0.47765602]
[1772953199114,0.48697183,82.469,82.415,0.47765602]
[1772953199496,0.48697183,82.467,82.417,0.47765602]
[1772953200386,0.48697183,82.459,82.417,0.47765602]
[1772953200905,0.48697183,82.449,82.416,42.46748203]
[1772953201304,0.48697183,82.449,82.407,12.13489145]
[1772953201507,0.48697183,82.437,82.402,12.13562777]
[1772953202602,0.48697183,82.437,82.403,0.49753427]
[1772953202800,87.85433665,82.471,82.404,0.5042911]
[1772953203006,12.12606254,82.467,82.404,0.5042911]
[1772953203511,12.12606254,82.467,82.407,0.5042911]
[1772953204493,4.70347554,82.46,82.407,0.5042911]
[1772953204694,4.70347554,82.45,82.407,0.5042911]
[1772953204895,0.48749416,82.449,82.407,0.5042911]
[1772953205087,0.48749416,82.439,82.394,0.5042911]
[1772953205713,0.48749416,82.437,82.396,0.5042911]
[1772953208315,0.48749416,82.435,82.398,0.5042911]
[1772953210497,0.48749416,82.433,82.4,0.5042911]
[1772953211917,0.48749416,82.433,82.402,0.5042911]
[1772953214206,0.48749416,82.431,82.403,12.1354805]
[1772953214401,0.48749416,82.429,82.396,0.5042911]
[1772953214721,0.48749416,82.429,82.391,12.6415391]
[1772953215619,0.48749416,82.429,82.392,0.5042911]
[1772953218403,0.48749416,82.427,82.394,0.5042911]
[1772953221125,0.48749416,82.425,82.396,0.5042911]
[1772953223129,0.48749416,82.425,82.397,12.13636418]
[1772953223430,0.48749416,82.425,82.398,0.5042911]
[1772953223722,12.13238862,82.424,82.398,0.5042911]
[1772953224024,0.48749416,82.423,82.398,0.5042911]
[1772953225522,0.48749416,82.421,82.396,12.13642703]
[1772953225920,0.48749416,82.421,82.397,0.5042911]
[1772953227714,0.48749416,82.421,82.398,12.13621689]
[1772953227914,0.48749416,82.421,82.399,0.5042911]
[1772953230536,0.48749416,82.419,82.399,0.5042911]
[1772953236639,0.48749416,82.419,82.401,0.53265023]
[1772953239026,57.39614978,82.439,82.403,0.53265023]
[1772953239228,57.93118186,82.439,82.403,0.53265023]
[1772953240721,12.13032824,82.438,82.403,0.53265023]
[1772953241926,57.39614978,82.439,82.405,0.53265023]
[1772953243922,57.39614978,82.439,82.407,0.53265023]
[1772953245442,57.39614978,82.439,82.409,0.53265023]
[1772953246841,57.39614978,82.439,82.411,0.53265023]
[1772953248319,0.53503208,82.454,82.412,0.53265023]
[1772953248520,0.53503208,82.449,82.41,12.1344497]
[1772953249446,0.53503208,82.447,82.41,12.1344497]
[1772953249943,0.53503208,82.447,82.411,0.53265023]
[1772953250847,0.53503208,82.445,82.412,12.66680545]
[1772953251949,0.53503208,82.443,82.413,0.53265023]
[1772953254633,0.53503208,82.441,82.415,0.53265023]
[1772953260263,0.53503208,82.441,82.417,0.53265023]
[1772953260760,0.53503208,82.439,82.411,0.53265023]
[1772953261067,0.53503208,82.439,82.4,12.13592233]
[1772953261642,0.53503208,82.429,82.386,0.53265023]
[1772953261841,0.53503208,82.419,82.381,0.53265023]
[1772953262570,0.53616202,82.417,82.39,12.33732619]
[1772953263651,0.53616202,82.417,82.39,12.90140407]
[1772953264542,0.53616202,82.417,82.391,0.56407788]
[1772953265665,0.53616202,82.415,82.391,0.56407788]
[1772953269471,0.53616202,82.415,82.393,0.56407788]
[1772953272350,12.13386075,82.414,82.392,12.13710068]
[1772953272550,0.53616202,82.413,82.39,0.2]
[1772953273060,0.53616202,82.413,82.391,0.56407788]
[1772953281383,0.53616202,82.411,82.391,0.56407788]
[1772953283294,0.53616202,82.411,82.393,0.56407788]
[1772953284283,0.53616202,82.411,82.395,0.56407788]
[1772953288578,0.53616202,82.409,82.39,0.2]
[1772953289870,0.53616202,82.407,82.39,0.2]
[1772953292573,0.54936109,82.405,82.39,0.2]
[1772953293173,0.54936109,82.405,82.39,0.7558625]
[1772953293370,4.71346038,82.42,82.391,0.5558625]
[1772953293371,0.54936109,82.41,82.391,0.5558625]
[1772953293571,0.54936109,82.41,82.392,0.5558625]
[1772953312511,0.54936109,82.424,82.392,0.5558625]
[1772953313621,12.13224143,82.425,82.39,0.2]
[1772953313622,0.54936109,82.422,82.394,0.5558625]
[1772953314910,0.54936109,82.422,82.396,0.5558625]
[1772953316015,0.54936109,82.445,82.396,0.5558625]
[1772953316522,0.54936109,82.439,82.396,0.5558625]
[1772953316699,4.71346038,82.43,82.396,0.5558625]
[1772953317003,4.71346038,82.43,82.39,0.2]
[1772953317004,0.54936109,82.427,82.398,0.5558625]
[1772953318222,0.54936109,82.425,82.398,0.5558625]
[1772953320607,0.54936109,82.419,82.391,12.137248]
[1772953322324,0.54936109,82.419,82.391,12.6931105]
[1772953322532,0.54936109,82.419,82.394,0.53486521]
[1772953324018,0.55936161,82.417,82.394,0.53486521]
[1772953325923,0.55936161,82.417,82.396,0.53486521]
[1772953327422,0.55936161,82.437,82.396,0.53486521]
[1772953331031,0.55936161,82.435,82.398,0.53486521]
[1772953334910,12.13062254,82.436,82.393,30.34232116]
[1772953334911,0.55936161,82.433,82.4,0.53486521]
[1772953336419,0.55936161,82.431,82.402,0.53486521]
[1772953337015,0.55936161,82.429,82.401,12.13577505]
[1772953338218,0.55936161,82.429,82.402,0.53486521]
[1772953341637,0.55936161,82.429,82.404,0.53486521]
[1772953344431,0.55936161,82.429,82.405,12.13518597]
[1772953344627,0.55936161,82.429,82.406,0.53486521]
[1772953346546,0.55936161,82.429,82.407,12.13489145]
[1772953346740,0.55936161,82.429,82.408,0.53486521]
[1772953348346,12.13121118,82.432,82.408,0.53486521]
[1772953348727,0.55936161,82.432,82.408,0.53486521]
[1772953350443,12.13135834,82.431,82.408,0.53486521]
[1772953350748,0.55936161,82.43,82.408,0.53486521]
[1772953353553,0.53738627,82.428,82.408,0.53486521]
[1772953355958,0.53738627,82.428,82.41,0.55339635]
[1772953356352,0.53738627,82.433,82.41,0.55339635]
[1772953356752,0.53738627,82.431,82.41,0.55339635]
[1772953357347,0.53738627,82.442,82.412,0.55339635]
[1772953359553,0.53738627,82.44,82.414,0.55339635]
[1772953360253,12.12988682,82.441,82.414,0.55339635]
[1772953360659,0.53738627,82.44,82.414,0.55339635]
[1772953363458,0.53738627,82.44,82.416,0.55339635]
[1772953364865,0.53738627,82.44,82.418,0.55339635]
[1772953368659,0.53738627,82.44,82.42,0.55339635]
[1772953370366,0.53738627,82.444,82.42,0.55339635]
[1772953370667,0.53738627,82.444,82.422,0.55339635]
[1772953371957,0.53738627,82.442,82.418,0.55339635]
[1772953374255,0.53738627,82.44,82.392,0.55339635]
[1772953377271,0.53738627,82.438,82.394,0.55339635]
[1772953379879,0.28432314,82.454,82.39,0.2]
[1772953379880,0.53738627,82.436,82.396,0.55339635]
[1772953380178,0.53738627,82.429,82.396,0.55339635]
[1772953383079,0.53947344,82.427,82.398,0.57322716]
[1772953383291,0.53947344,82.445,82.398,0.57322716]
[1772953386675,0.53947344,82.445,82.39,0.2]
[1772953386676,0.53947344,82.45,82.403,0.57322716]
[1772953387983,0.53947344,82.45,82.405,0.57322716]
[1772953389683,0.53947344,82.465,82.406,0.57322716]
[1772953389880,0.53947344,82.463,82.409,0.57322716]
[1772953392701,2.53076571,82.467,82.415,0.57322716]
[1772953392877,0.53947344,82.466,82.415,0.57322716]
[1772953393069,0.53947344,82.466,82.417,0.57322716]
[1772953396384,1.99129227,82.467,82.415,1.21337135]
[1772953396385,1.99129227,82.467,82.422,0.57322716]
[1772953396572,1.99129227,82.467,82.423,0.57322716]
[1772953397378,1.99129227,82.467,82.426,0.57322716]
[1772953398187,0.53947344,82.466,82.426,0.57322716]
[1772953399405,0.53947344,82.466,82.429,0.57322716]
[1772953400885,0.28432314,82.498,82.429,0.57322716]
[1772953401092,4.71037961,82.49,82.429,0.57322716]
[1772953402892,0.53947344,82.487,82.432,0.57322716]
[1772953406579,12.1232694,82.486,82.433,42.45872404]
[1772953406779,0.53947344,82.485,82.434,0.57322716]
[1772953407781,0.53947344,82.485,82.436,0.57322716]
[1772953407979,0.53947344,82.485,82.438,0.57322716]
[1772953408386,0.53947344,82.485,82.442,0.57322716]
[1772953408698,0.53947344,82.485,82.448,0.57322716]
[1772953408875,0.53947344,82.485,82.45,0.57322716]
[1772953409284,0.53947344,82.485,82.452,0.57322716]
[1772953409479,12.12151737,82.498,82.452,0.57322716]
[1772953409686,12.11974306,82.51,82.453,0.57322716]
[1772953410287,12.11974306,82.51,82.455,0.57322716]
[1772953411098,30.29934847,82.511,82.457,0.57322716]
[1772953411298,30.29934847,82.511,82.459,0.57322716]
[1772953411497,0.1687429,82.51,82.46,0.57322716]
[1772953411704,0.1687429,82.51,82.461,0.57322716]
[1772953411905,0.1687429,82.51,82.462,0.57322716]
[1772953412103,0.1687429,82.51,82.463,0.57322716]
[1772953412407,0.1687429,82.51,82.464,0.57322716]
[1772953412610,0.1687429,82.51,82.465,0.57424654]
[1772953412786,0.1687429,82.51,82.466,0.57424654]
[1772953413107,0.1687429,82.51,82.467,0.57424654]
[1772953413407,0.1687429,82.51,82.469,0.57424654]
[1772953413705,0.1687429,82.51,82.471,0.57424654]
[1772953413893,0.1687429,82.51,82.472,0.57424654]
[1772953414102,4.87912251,82.51,82.472,11.46172589]
[1772953414303,0.16984121,82.509,82.472,11.46172589]
[1772953414696,0.16984121,82.509,82.473,0.57424654]
[1772953415496,0.170547,82.507,82.473,0.57424654]
[1772953416790,0.17088886,82.505,82.473,0.57424654]
[1772953419125,0.17157425,82.503,82.473,12.03583345]
[1772953419301,0.17157425,82.503,82.474,0.57424654]
[1772953421322,0.17223175,82.501,82.474,0.57424654]
[1772953422704,0.17223175,82.501,82.476,0.57424654]
[1772953424102,0.17223175,82.501,82.477,12.12459231]
[1772953424426,0.17320043,82.507,82.478,0.57424654]
[1772953424827,0.17351791,82.523,82.478,0.57424654]
[1772953425026,0.17351791,82.529,82.479,0.57424654]
[1772953426325,0.1738305,82.527,82.482,0.57424654]
[1772953428510,0.17474772,82.525,82.484,0.57424654]
[1772953429437,12.11695282,82.529,82.484,0.57424654]
[1772953429923,0.27474772,82.53,82.484,0.57424654]
[1772953430816,0.1,82.54,82.488,3.69383402]
[1772953431025,0.1,82.54,82.492,0.57424654]
[1772953431407,0.17562711,82.539,82.493,0.57424654]
[1772953431727,0.17562711,82.539,82.494,0.57424654]
[1772953432908,0.17591756,82.538,82.496,0.57424654]
[1772953433204,0.17591756,82.538,82.498,0.57424654]
[1772953433417,0.17591756,82.538,82.499,0.57424654]
[1772953433620,0.17591756,82.538,82.5,0.57424654]
[1772953433821,0.17591756,82.538,82.501,0.57424654]
[1772953434015,0.17619633,82.536,82.503,0.57424654]
[1772953434221,0.17619633,82.536,82.502,12.12091828]
[1772953434222,0.17619633,82.536,82.505,0.57424654]
[1772953434420,0.1,82.54,82.505,0.57424654]
[1772953435022,0.17647954,82.553,82.506,0.57424654]
[1772953436012,0.17647954,82.553,82.509,0.57424654]
[1772953437336,0.17703316,82.551,82.512,0.57424654]
[1772953438736,0.17703316,82.551,82.514,0.57424654]
[1772953439522,12.11387038,82.55,82.515,12.11900866]
[1772953439827,0.17784883,82.549,82.516,0.57424654]
[1772953440144,4.80284878,82.56,82.516,0.57424654]
[1772953440145,0.17784883,82.559,82.516,0.57424654]
[1772953440311,0.1,82.56,82.517,0.57424654]
[1772953440732,0.17810355,82.559,82.517,0.57424654]
[1772953441837,0.17836907,82.558,82.519,0.57424654]
[1772953443316,0.1,82.56,82.519,0.57424654]
[1772953443533,0.1793749,82.565,82.52,0.54910042]
[1772953443939,0.1,82.57,82.522,0.54910042]
[1772953443940,0.1793749,82.563,82.522,0.54910042]
[1772953445020,0.17962022,82.559,82.522,0.54910042]
[1772953447344,0.18009482,82.557,82.524,0.54910042]
[1772953449746,0.1807881,82.555,82.526,0.54910042]
[1772953452643,0.18146464,82.553,82.528,0.54910042]
[1772953454645,0.18146464,82.553,82.53,0.54910042]
[1772953455351,0.1,82.57,82.53,0.54910042]
[1772953455352,12.11266966,82.559,82.53,0.54910042]
[1772953455641,0.18211381,82.563,82.53,0.54910042]
[1772953457452,0.18233155,82.559,82.527,0.54910042]
[1772953458936,0.18274525,82.557,82.529,0.54910042]
[1772953460862,0.18315545,82.555,82.517,0.54910042]
[1772953461558,0.18315545,82.555,82.519,0.54910042]
[1772953464560,0.18395334,82.553,82.519,0.54910042]
[1772953464955,0.18395334,82.549,82.519,0.54910042]
[1772953468751,0.1847058,82.547,82.519,0.54910042]
[1772953470739,0.18506391,82.545,82.519,0.54910042]
[1772953471962,12.11313806,82.555,82.52,0.54910042]
[1772953472151,0.1,82.57,82.52,0.28432314]
[1772953472339,12.10984895,82.578,82.523,0.56751953]
[1772953472758,12.10984895,82.578,82.525,0.28432314]
[1772953472943,12.10984895,82.578,82.526,0.56751953]
[1772953473555,12.10904186,82.583,82.529,0.56751953]
[1772953474358,12.10824147,82.589,82.532,0.56751953]
[1772953474869,12.53549918,82.589,82.535,0.56751953]
[1772953475254,0.42725771,82.588,82.535,0.56751953]
[1772953476159,0.42760093,82.586,82.538,0.56751953]
[1772953478353,0.2,82.59,82.541,0.56751953]
[1772953479454,0.6285958,82.59,82.543,0.56751953]
[1772953479654,0.42892377,82.589,82.543,0.56751953]
[1772953481458,0.42956282,82.588,82.546,0.56751953]
[1772953481980,0.2,82.59,82.546,0.56751953]
[1772953482349,0.62956282,82.59,82.546,0.56751953]
[1772953482545,0.42988034,82.589,82.546,0.56751953]
[1772953483061,0.2,82.59,82.546,0.56751953]
[1772953483574,0.2,82.59,82.549,0.56751953]
[1772953485165,0.43050137,82.589,82.549,0.56751953]
[1772953485768,0.43050137,82.589,82.552,0.56751953]
[1772953491268,0.43050137,82.589,82.554,0.56751953]
[1772953491468,0.2,82.59,82.554,0.56751953]
[1772953491676,0.43257406,82.599,82.555,0.56751953]
[1772953492260,12.30656631,82.6,82.555,0.56751953]
[1772953492573,0.43285286,82.599,82.555,0.56751953]
[1772953494379,0.43285286,82.599,82.558,0.56751953]
[1772953495065,0.2,82.6,82.558,0.56751953]
[1772953495267,12.10595485,82.604,82.59,0.56751953]
[1772953495861,0.43366927,82.603,82.561,0.56751953]
[1772953496278,0.1,82.62,82.56,0.28432314]
[1772953496279,0.56737462,82.619,82.563,0.56751953]
[1772953496574,0.1,82.62,82.563,0.56751953]
[1772953496575,0.56737462,82.617,82.563,0.56751953]
[1772953497162,0.1,82.62,82.564,0.56751953]
[1772953497360,0.66737462,82.62,82.564,0.56751953]
[1772953499271,0.66737462,82.62,82.569,0.56751953]
[1772953499475,0.66737462,82.62,82.57,0.56751953]
[1772953501474,0.66737462,82.62,82.573,0.56751953]
[1772953502297,12.10082406,82.639,82.606,0.59110687]
[1772953503476,0.1,82.64,82.575,1.49534342]
[1772953503477,0.1,82.64,82.608,0.58907465]
[1772953504189,0.1139808,82.639,82.608,0.58907465]
[1772953505794,0.1139808,82.639,82.609,12.10521855]
[1772953505987,0.1139808,82.639,82.61,0.58907465]
[1772953507092,0.1,82.65,82.611,0.58907465]
[1772953507291,0.1164267,82.658,82.612,0.58907465]
[1772953507589,0.1164267,82.666,82.613,0.58907465]
[1772953507980,0.1164267,82.666,82.616,0.58907465]
[1772953508180,0.1164267,82.666,82.618,0.58907465]
[1772953508393,0.11722205,82.669,82.618,0.58907465]
[1772953508601,0.11722205,82.669,82.622,0.28432314]
[1772953508783,0.11722205,82.669,82.623,0.58907465]
[1772953508988,0.1,82.67,82.625,0.58907465]
[1772953509810,0.11879865,82.669,82.625,0.58907465]
[1772953509988,0.11879865,82.669,82.624,7.53867191]
[1772953509989,0.11879865,82.669,82.628,0.58907465]
[1772953510193,0.11879865,82.669,82.63,0.58907465]
[1772953510398,0.1,82.67,82.63,0.58907465]
[1772953510615,0.11956655,82.678,82.632,0.58907465]
[1772953510806,0.11956655,82.678,82.634,0.58907465]
[1772953512103,0.11956655,82.678,82.636,0.58907465]
[1772953512322,0.11956655,82.678,82.638,0.58907465]
[1772953512505,0.11956655,82.678,82.639,0.58907465]
[1772953512820,0.11956655,82.678,82.64,0.58907465]
[1772953513008,0.12108352,82.693,82.641,0.58907465]
[1772953513902,0.12108352,82.693,82.642,42.35134677]
[1772953514101,0.12108352,82.693,82.643,0.58907465]
[1772953515992,0.12108352,82.693,82.646,0.58907465]
[1772953516191,0.12108352,82.693,82.648,0.58907465]
[1772953516413,0.12108352,82.693,82.649,0.58907465]
[1772953516711,0.12399809,82.7,82.651,0.58907465]
[1772953517211,0.12399809,82.7,82.653,0.58907465]
[1772953517608,0.1,82.71,82.655,0.58907465]
[1772953517609,0.12470068,82.698,82.655,0.58907465]
[1772953517789,0.12470068,82.704,82.655,0.58907465]
[1772953517995,0.12470068,82.709,82.662,0.58907465]
[1772953518193,0.1,82.71,82.665,0.58907465]
[1772953518906,4.69221057,82.73,82.664,0.28432314]
[1772953518907,1e-08,82.714,82.671,0.58907465]
[1772953519110,108.49221057,82.8,82.671,0.58907465]
[1772953519111,0.12539673,82.762,82.678,0.58907465]
[1772953519411,0.12539673,82.768,82.699,0.58907465]
[1772953519707,0.12609383,82.759,82.699,0.58907465]
[1772953519910,0.12609383,82.749,82.699,0.58907465]
[1772953520107,0.12609383,82.748,82.704,0.58907465]
[1772953520303,0.12609383,82.759,82.705,0.58907465]
[1772953521006,0.12678253,82.779,82.71,0.28432314]
[1772953521208,0.12678253,82.796,82.718,3.69383402]
[1772953521401,9.66015237,82.85,82.732,3.69383402]
[1772953521604,12.06942332,82.854,82.754,4.82477569]
[1772953521921,12.06942332,82.854,82.753,0.89921426]
[1772953521922,4.69221057,82.85,82.771,0.61489112]
[1772953522211,4.69221057,82.82,82.773,0.61489112]
[1772953522397,12.06796447,82.865,82.777,0.61489112]
[1772953522597,12.06796447,82.865,82.776,0.28432314]
[1772953522598,103.8,82.951,82.796,0.61489112]
[1772953522795,12.06436557,82.889,82.806,0.89921426]
[1772953523016,4.69221057,82.89,82.813,0.61489112]
[1772953523312,4.69221057,82.86,82.813,0.61489112]
[1772953523903,4.69221057,82.85,82.807,11.37470302]
[1772953524118,12.07452396,82.819,82.777,0.61489112]
[1772953524318,12.07160878,82.839,82.778,0.75705269]
[1772953524498,12.07160878,82.839,82.78,0.75705269]
[1772953524695,0.14216157,82.889,82.785,0.61489112]
[1772953524894,4.69221057,82.86,82.785,0.61489112]
[1772953525095,4.69221057,82.84,82.785,0.61489112]
[1772953525513,4.69221057,82.83,82.785,0.61489112]
[1772953525832,4.69221057,82.82,82.785,0.61489112]
[1772953526118,4.69221057,82.83,82.785,0.61489112]
[1772953526419,4.69221057,82.83,82.787,0.61489112]
[1772953527321,4.69221057,82.82,82.787,0.61489112]
[1772953528698,0.28432314,82.838,82.787,0.61489112]
[1772953528897,4.69221057,82.82,82.787,0.61489112]
[1772953529300,4.69221057,82.82,82.78,12.1551681]
[1772953529499,4.69221057,82.82,82.78,12.77005922]
[1772953529812,4.69221057,82.81,82.78,12.1551681]
[1772953530017,4.69221057,82.82,82.781,0.61489112]
[1772953530414,4.69221057,82.81,82.781,0.61489112]
[1772953530618,30.47048768,82.82,82.78,12.1551681]
[1772953530801,12.07452396,82.819,82.782,0.61489112]
[1772953531000,42.26083386,82.819,82.782,0.61489112]
[1772953531216,4.69221057,82.81,82.78,12.1551681]
[1772953531499,4.69221057,82.81,82.764,0.61489112]
[1772953531697,42.26083386,82.819,82.764,0.61489112]
[1772953531698,4.69221057,82.8,82.764,0.61489112]
[1772953531903,4.69221057,82.81,82.764,0.61489112]
[1772953532713,11.67368316,82.8,82.756,0.61489112]
[1772953533798,11.67368316,82.79,82.75,0.61489112]
[1772953534099,11.67368316,82.79,82.743,0.61489112]
[1772953534296,11.67368316,82.78,82.743,0.61489112]
[1772953534497,11.67963685,82.78,82.743,0.61489112]
[1772953534713,11.67963685,82.78,82.732,12.70086078]
[1772953534714,42.2812549,82.779,82.733,0.61489112]
[1772953534919,11.67963685,82.77,82.733,0.61489112]
[1772953535720,42.2812549,82.779,82.732,12.70086078]
[1772953536020,42.2812549,82.779,82.733,0.61489112]
[1772953536021,11.67963685,82.77,82.733,0.61489112]
[1772953536724,12.08050448,82.778,82.734,0.61489112]
[1772953536905,42.28176568,82.778,82.734,0.61489112]
[1772953537501,11.67963685,82.77,82.734,0.61489112]
[1772953538529,11.67963685,82.76,82.732,12.70086078]
[1772953538850,12.08181807,82.769,82.735,0.61489112]
[1772953540144,12.07889937,82.789,82.735,0.61489112]
[1772953540349,12.07598207,82.809,82.738,0.61489112]
[1772953540526,12.07598207,82.809,82.739,0.61489112]
[1772953540948,12.07598207,82.809,82.742,0.61489112]
[1772953541533,12.07598207,82.809,82.745,0.61489112]
[1772953543067,42.26116183,82.819,82.748,0.61489112]
[1772953543644,11.67963685,82.81,82.748,0.61489112]
[1772953545159,12.07598207,82.809,82.751,0.61489112]
[1772953546346,0.28432314,82.837,82.751,0.61489112]
[1772953546571,12.06767181,82.867,82.754,4.30872514]
[1772953546745,12.06767181,82.867,82.752,4.90226402]
[1772953546746,42.22005089,82.899,82.772,0.61489112]
[1772953546942,42.22514446,82.889,82.794,3.69383402]
[1772953547252,11.67963685,82.88,82.797,0.75705269]
[1772953547442,11.67963685,82.87,82.797,0.75705269]
[1772953547651,11.67963685,82.85,82.797,0.61489112]
[1772953548451,0.14216157,82.877,82.797,0.61489112]
[1772953548767,12.07015172,82.849,82.799,0.61489112]
[1772953549870,42.24553102,82.849,82.799,0.61489112]
[1772953550677,42.24553102,82.849,82.801,0.61489112]
[1772953551173,11.67963685,82.84,82.801,0.61489112]
[1772953551572,0.02052502,82.84,82.801,0.61489112]
[1772953552369,0.02052502,82.848,82.801,0.61489112]
[1772953553474,11.67963685,82.84,82.803,0.61489112]
[1772953553685,0.02157474,82.839,82.803,0.61489112]
[1772953554553,0.02209161,82.829,82.796,12.07784292]
[1772953555149,0.02209161,82.829,82.797,0.61489112]
[1772953555355,0.02209161,82.839,82.797,0.61489112]
[1772953555555,12.06927765,82.855,82.799,0.61489112]
[1772953556369,0.0226031,82.854,82.799,0.61489112]
[1772953556573,0.02309953,82.839,82.799,0.61489112]
[1772953556968,0.02309953,82.829,82.79,0.61489112]
[1772953557158,0.02309953,82.829,82.791,12.69349869]
[1772953557658,0.02359941,82.828,82.792,0.61489112]
[1772953559964,0.02459053,82.819,82.784,0.61489112]
[1772953560477,12.09911449,82.819,82.784,0.61489112]
[1772953560688,0.02506817,82.799,82.766,0.61489112]
[1772953561387,0.02506817,82.809,82.766,0.61489112]
[1772953561582,0.02554633,82.816,82.766,0.61489112]
[1772953561883,0.02554633,82.818,82.766,0.61489112]
[1772953562056,0.02554633,82.809,82.766,0.61489112]
[1772953562688,0.02695893,82.808,82.768,0.61489112]
[1772953563061,12.07598207,82.809,82.768,0.61489112]
[1772953563574,12.10339684,82.809,82.768,0.61489112]
[1772953563779,0.02741477,82.808,82.768,0.61489112]
[1772953565470,0.02741477,82.808,82.77,0.61489112]
[1772953565665,0.02831828,82.799,82.756,0.61489112]
[1772953566785,0.02876478,82.798,82.756,0.61489112]
[1772953567181,11.70840163,82.79,82.756,0.61489112]
[1772953567385,0.02876478,82.789,82.756,0.61489112]
[1772953567756,0.02876478,82.789,82.757,12.08356996]
[1772953568084,0.02876478,82.789,82.758,0.61489112]
[1772953569378,12.07744054,82.799,82.76,0.61489112]
[1772953569985,0.03005111,82.798,82.76,0.61489112]
[1772953570670,0.03005111,82.798,82.734,0.89921426]
[1772953570876,0.03047075,82.779,82.735,0.61489112]
[1772953571071,0.03047075,82.769,82.735,0.61489112]
[1772953571472,0.03072526,82.759,82.727,0.61489112]
[1772953571985,0.03072526,82.749,82.704,0.61489112]
[1772953572280,11.67963685,82.74,82.704,0.61489112]
[1772953572584,11.7106137,82.74,82.704,0.61489112]
[1772953573478,12.08619876,82.739,82.705,12.0911674]
[1772953573784,12.08619876,82.739,82.706,0.61489112]
[1772953573969,0.03122547,82.738,82.706,0.61489112]
[1772953574176,0.03122547,82.738,82.682,0.61489112]
[1772953574177,11.67963685,82.73,82.682,0.61489112]
[1772953575562,12.08619876,82.739,82.684,0.61489112]
[1772953575762,12.08619876,82.739,82.685,0.61489112]
[1772953578067,12.08619876,82.739,82.687,0.61489112]
[1772953578264,11.67963685,82.73,82.687,0.61489112]
[1772953578864,12.08619876,82.739,82.687,0.61489112]
[1772953579567,0.03266286,82.738,82.687,0.61489112]
[1772953579769,11.67963685,82.73,82.687,0.61489112]
[1772953580069,12.0876597,82.729,82.688,12.09365325]
[1772953580274,12.0876597,82.729,82.689,0.61489112]
[1772953581195,12.0874913,82.731,82.689,0.61489112]
[1772953582170,0.03311894,82.744,82.691,0.61489112]
[1772953582366,0.03311894,82.743,82.691,0.61489112]
[1772953582793,0.03334686,82.739,82.691,0.61489112]
[1772953584384,0.0335768,82.738,82.693,0.61489112]
[1772953586300,12.08619876,82.739,82.693,0.61489112]
[1772953587678,0.03444771,82.739,82.695,0.61489112]
[1772953588499,0.03444771,82.729,82.695,0.61489112]
[1772953590895,12.12210741,82.729,82.697,0.61489112]
[1772953592394,0.03568319,82.742,82.699,0.61489112]
[1772953592694,12.11939917,82.756,82.699,0.61489112]
[1772953593199,0.03568319,82.755,82.699,0.61489112]
[1772953594689,60.39671279,82.786,82.68,3.89383402]
[1772953594690,12.08297785,82.762,82.702,0.61489112]
[1772953594902,0.03607577,82.761,82.702,0.61489112]
[1772953595077,0.03607577,82.759,82.702,0.61489112]
[1772953596594,0.03607577,82.759,82.705,0.61489112]
[1772953598577,0.03607577,82.759,82.707,0.61489112]
[1772953599084,0.0368329,82.766,82.707,0.61489112]
[1772953601498,0.0368329,82.766,82.71,0.61489112]
[1772953602197,12.08181807,82.769,82.71,0.61489112]
[1772953602497,4.67410924,82.76,82.71,0.61489112]
[1772953602801,0.03756035,82.759,82.71,0.61489112]
[1772953603603,42.28636324,82.769,82.711,12.09029028]
[1772953603604,0.03773692,82.749,82.711,12.09029028]
[1772953604184,0.03773692,82.749,82.712,0.61489112]
[1772953604591,0.03773692,82.749,82.713,12.70488906]
[1772953605202,0.03773692,82.749,82.714,0.61489112]
[1772953606686,0.03827111,82.748,82.714,0.61489112]
[1772953606886,0.03827111,82.748,82.713,12.08999794]
[1772953607797,0.03827111,82.748,82.708,12.09072882]
[1772953608104,0.03827111,82.748,82.709,0.61489112]
[1772953609407,0.03860334,82.739,82.709,0.61489112]
[1772953610110,0.03860334,82.739,82.71,12.09043646]
[1772953611707,0.03860334,82.739,82.702,0.61489112]
[1772953612413,0.03909753,82.764,82.702,0.61489112]
[1772953614007,0.03909753,82.764,82.705,0.61489112]
[1772953614700,0.03955849,82.778,82.705,0.61489112]
[1772953615917,0.03971221,82.768,82.707,0.61489112]
[1772953616986,0.03986979,82.759,82.707,0.61489112]
[1772953618414,0.03986979,82.759,82.709,0.61489112]
[1772953620133,0.04031077,82.749,82.702,0.61489112]
[1772953620321,0.04031077,82.749,82.624,26.68219561]
[1772953620322,0.04031077,82.738,82.704,0.61489112]
[1772953620900,0.04046075,82.729,82.698,12.70701978]
[1772953621112,0.04046075,82.729,82.699,0.61489112]
[1772953622405,0.04046075,82.729,82.701,0.61489112]
[1772953622799,0.04046075,82.729,82.696,0.61489112]
[1772953623522,0.04046075,82.729,82.695,12.09261699]
[1772953623523,0.59788794,82.794,82.698,3.69383402]
[1772953623820,0.59788794,82.779,82.702,3.69383402]
[1772953624124,0.59788794,82.779,82.703,0.28432314]